fUST/lending_fUST_20240312
["ID","MTS","AMOUNT","RATE_DAILY","PERIOD"]
[318448102,1710252644236,-500.0,0.00013837,2]
[318448104,1710252644246,-1275.99,0.00013837,2]
[318448106,1710252644255,-500.0,0.00013837,2]
[318448108,1710252644268,-500.0,0.00013837,2]
[318448110,1710252644278,-1275.99,0.00013837,2]
[318448112,1710252644290,-500.0,0.00013837,2]
[318448114,1710252644299,-500.0,0.00013837,2]
[318448116,1710252644309,-500.0,0.00013837,2]
[318448118,1710252644320,-545.44219465,0.00013837,2]
[318448120,1710252644330,-500.0,0.00013837,2]
[318448122,1710252644344,-569.27696736,0.00013837,2]
[318448124,1710252644354,-500.0,0.00013837,2]
[318448126,1710252644366,-500.0,0.00013837,2]
[318448128,1710252644377,-500.0,0.00013837,2]
[318448130,1710252644387,-500.0,0.00013837,2]
[318448132,1710252644397,-216.18439808,0.00013837,2]
[318448134,1710252644407,-541.42,0.00013837,2]
[318448136,1710252644416,-541.42,0.00013837,2]
[318448138,1710252644427,-541.42,0.00013837,2]
[318448140,1710252644436,-541.42,0.00013837,2]
[318448141,1710252644446,-541.42,0.00013837,2]
[318448143,1710252644456,-171.5132179,0.00013837,2]
[318448145,1710252644465,-541.42,0.00013837,2]
[318448148,1710252644476,-541.42,0.00013837,2]
[318448150,1710252644486,-500.0,0.00013837,2]
[318448151,1710252644496,-500.0,0.00013837,2]
[318448153,1710252644506,-500.0,0.00013837,2]
[318448155,1710252644516,-421.96190111,0.00013837,2]
[318448157,1710252644525,-500.0,0.00013837,2]
[318448159,1710252644535,-186.43825213,0.00013837,2]
[318448161,1710252644545,-197.62045449,0.00013837,2]
[318448163,1710252644555,-13415.19,0.00013837,2]
[318448165,1710252644565,-13415.19,0.00013837,2]
[318448167,1710252644575,-13415.19,0.00013837,2]
[318448170,1710252644588,-13415.19,0.00013837,2]
[318448172,1710252644598,-13415.19,0.00013837,2]
[318448174,1710252644608,-13415.19,0.00013837,2]
[318448175,1710252644617,-13415.19,0.00013837,2]
[318448177,1710252644627,-500.0,0.00013837,2]
[318448179,1710252644637,-500.0,0.00013837,2]
[318448181,1710252644647,-500.0,0.00013837,2]
[318448183,1710252644656,-500.0,0.00013837,2]
[318448186,1710252644667,-500.0,0.00013837,2]
[318448187,1710252644677,-225.25365356,0.00013837,2]
[318448189,1710252644691,-500.0,0.00013837,2]
[318448191,1710252644701,-821.18,0.00013837,2]
[318448194,1710252644710,-821.18,0.00013837,2]
[318448196,1710252644721,-821.18,0.00013837,2]
[318448198,1710252644731,-821.18,0.00013837,2]
[318448200,1710252644742,-821.18,0.00013837,2]
[318448202,1710252644752,-821.18,0.00013837,2]
[318448204,1710252644763,-821.18,0.00013837,2]
[318448206,1710252644772,-500.0,0.00013837,2]
[318448215,1710252644855,-500.0,0.00013837,2]
[318448217,1710252644870,-500.0,0.00013837,2]
[318448219,1710252644881,-2152.4,0.00013837,2]
[318448221,1710252644892,-2152.4,0.00013837,2]
[318448223,1710252644904,-2152.4,0.00013837,2]
[318448225,1710252644915,-2152.4,0.00013837,2]
[318448227,1710252644925,-2152.4,0.00013837,2]
[318448229,1710252644935,-2152.4,0.00013837,2]
[318448231,1710252644945,-2152.4,0.00013837,2]
[318448233,1710252644955,-2152.4,0.00013837,2]
[318448235,1710252644966,-500.0,0.00013837,2]
[318448237,1710252644977,-500.0,0.00013837,2]
[318448239,1710252644986,-500.0,0.00013837,2]
[318448241,1710252644996,-500.0,0.00013837,2]
[318448243,1710252645007,-500.0,0.00013837,2]
[318448245,1710252645017,-500.0,0.00013837,2]
[318448247,1710252645026,-262.20822193,0.00013837,2]
[318448249,1710252645036,-500.0,0.00013838,2]
[318448251,1710252645047,-500.0,0.00013838,2]
[318448253,1710252645057,-609.48862041,0.00013838,2]
[318448255,1710252645067,-500.0,0.00013838,2]
[318448257,1710252645076,-500.0,0.00013838,2]
[318448259,1710252645090,-500.0,0.00013838,2]
[318448261,1710252645100,-500.0,0.00013838,2]
[318448263,1710252645109,-500.0,0.00013838,2]
[318448265,1710252645119,-500.0,0.00013838,2]
[318448267,1710252645128,-500.0,0.00013838,2]
[318448269,1710252645138,-564.43146365,0.00013838,2]
[318448271,1710252645147,-500.0,0.00013838,2]
[318448273,1710252645156,-333.31405425,0.00013838,2]
[318448275,1710252645165,-500.0,0.00013838,2]
[318448277,1710252645176,-500.0,0.00013838,2]
[318448279,1710252645185,-500.0,0.00013838,2]
[318448281,1710252645195,-500.0,0.00013838,2]
[318448283,1710252645204,-295.07436211,0.00013838,2]
[318448285,1710252645213,-500.0,0.00013838,2]
[318448287,1710252645226,-500.0,0.00013838,2]
[318448289,1710252645235,-219.38324519,0.00013838,2]
[318448291,1710252645244,-288.86612376,0.00013838,2]
[318448292,1710252645254,-500.0,0.00013838,2]
[318448294,1710252645265,-500.0,0.00013838,2]
[318448296,1710252645275,-500.0,0.00013838,2]
[318448299,1710252645287,-500.0,0.00013838,2]
[318448300,1710252645297,-500.0,0.00013838,2]
[318448303,1710252645307,-500.0,0.00013838,2]
[318448305,1710252645317,-500.0,0.00013838,2]
[318448306,1710252645327,-500.0,0.00013838,2]
[318448308,1710252645339,-500.0,0.00013838,2]
[318448311,1710252645349,-500.0,0.00013838,2]
[318448312,1710252645359,-500.0,0.00013838,2]
[318448314,1710252645369,-500.0,0.00013838,2]
[318448317,1710252645379,-500.0,0.00013838,2]
[318448319,1710252645389,-500.0,0.00013838,2]
[318448320,1710252645399,-512.40705756,0.00013838,2]
[318448322,1710252645409,-237.18044026,0.00013838,2]
[318448324,1710252645419,-155.24035033,0.00013838,2]
[318448326,1710252645429,-644.19,0.00013838,2]
[318448328,1710252645438,-644.19,0.00013838,2]
[318448330,1710252645448,-644.19,0.00013838,2]
[318448332,1710252645457,-208.50314655,0.00013838,2]
[318448334,1710252645467,-500.0,0.00013838,2]
[318448336,1710252645477,-500.0,0.00013838,2]
[318448339,1710252645486,-500.0,0.00013838,2]
[318448340,1710252645496,-587.59,0.00013838,2]
[318448342,1710252645506,-587.59,0.00013838,2]
[318448345,1710252645516,-587.59,0.00013838,2]
[318448346,1710252645526,-500.87250106,0.00013838,2]
[318448349,1710252645536,-500.0,0.00013838,2]
[318448350,1710252645545,-500.0,0.00013838,2]
[318448352,1710252645555,-500.0,0.00013838,2]
[318448354,1710252645565,-500.0,0.00013838,2]
[318448356,1710252645576,-500.0,0.00013838,2]
[318448358,1710252645588,-500.0,0.00013838,2]
[318448360,1710252645598,-363.7186061,0.00013838,2]
[318448362,1710252645608,-500.0,0.00013838,2]
[318448364,1710252645619,-500.0,0.00013838,2]
[318448366,1710252645630,-500.0,0.00013838,2]
[318448368,1710252645640,-500.0,0.00013838,2]
[318448370,1710252645650,-620.80848893,0.00013838,2]
[318448372,1710252645661,-386.911941,0.00013838,2]
[318448374,1710252645672,-386.911941,0.00013838,2]
[318448376,1710252645682,-644.33931811,0.00013838,2]
[318448378,1710252645691,-330.04078126,0.00013838,2]
[318448380,1710252645701,-1103.12,0.00013838,2]
[318448382,1710252645714,-1103.12,0.00013838,2]
[318448384,1710252645723,-1103.12,0.00013838,2]
[318448386,1710252645733,-1103.12,0.00013838,2]
[318448387,1710252645742,-1103.12,0.00013838,2]
[318448388,1710252645751,-1103.12,0.00013838,2]
[318448389,1710252645760,-1103.12,0.00013838,2]
[318448390,1710252645769,-1103.12,0.00013838,2]
[318448391,1710252645778,-1103.12,0.00013838,2]
[318448392,1710252645787,-1103.12,0.00013838,2]
[318448393,1710252645796,-1103.20513096,0.00013838,2]
[318448394,1710252645805,-639.38,0.00013838,2]
[318448395,1710252645814,-639.38,0.00013838,2]
[318448396,1710252645823,-639.38,0.00013838,2]
[318448397,1710252645832,-639.38,0.00013838,2]
[318448399,1710252645849,-639.38,0.00013838,2]
[318448401,1710252645859,-639.38,0.00013838,2]
[318448402,1710252645869,-639.38,0.00013838,2]
[318448404,1710252645879,-639.38,0.00013838,2]
[318448405,1710252645890,-639.38,0.00013838,2]
[318448407,1710252645900,-639.38,0.00013838,2]
[318448409,1710252645911,-639.56552954,0.00013838,2]
[318448410,1710252645920,-176.84,0.00013838,2]
[318448411,1710252645931,-507.25,0.00013838,2]
[318448412,1710252645942,-507.25,0.00013838,2]
[318448413,1710252645952,-507.25,0.00013838,2]
[318448414,1710252645962,-507.25,0.00013838,2]
[318448415,1710252645972,-507.25,0.00013838,2]
[318448416,1710252645983,-507.25,0.00013838,2]
[318448417,1710252645994,-507.25,0.00013838,2]
[318448418,1710252646004,-507.25,0.00013838,2]
[318448419,1710252646015,-507.25,0.00013838,2]
[318448420,1710252646025,-507.25,0.00013838,2]
[318448421,1710252646035,-507.35,0.00013838,2]
[318448422,1710252646046,-500.0,0.00013838,2]
[318448423,1710252646056,-500.0,0.00013838,2]
[318448424,1710252646066,-500.0,0.00013838,2]
[318448425,1710252646076,-500.0,0.00013838,2]
[318448426,1710252646092,-501.20782437,0.00013838,2]
[318448427,1710252646103,-500.0,0.00013838,2]
[318448428,1710252646113,-500.0,0.00013838,2]
[318448429,1710252646122,-500.0,0.00013838,2]
[318448430,1710252646133,-500.0,0.00013838,2]
[318448431,1710252646144,-500.0,0.00013838,2]
[318448432,1710252646154,-500.0,0.00013838,2]
[318448433,1710252646165,-500.0,0.00013838,2]
[318448434,1710252646174,-500.0,0.00013838,2]
[318448435,1710252646186,-375.39217024,0.00013838,2]
[318448436,1710252646199,-500.0,0.00013838,2]
[318448437,1710252646210,-500.0,0.00013838,2]
[318448438,1710252646227,-311.35726124,0.00013838,2]
[318448439,1710252646239,-500.0,0.00013838,2]
[318448440,1710252646249,-500.0,0.00013838,2]
[318448441,1710252646262,-500.0,0.00013838,2]
[318448442,1710252646275,-500.0,0.00013838,2]
[318448443,1710252646287,-500.0,0.00013838,2]
[318448444,1710252646302,-500.0,0.00013838,2]
[318448445,1710252646314,-500.0,0.00013838,2]
[318448446,1710252646325,-500.0,0.00013838,2]
[318448447,1710252646339,-500.0,0.00013838,2]
[318448448,1710252646356,-435.3165132,0.00013838,2]
[318448449,1710252646368,-1202.4,0.00013838,2]
[318448450,1710252646379,-1202.4,0.00013838,2]
[318448451,1710252646390,-1202.4,0.00013838,2]
[318448452,1710252646400,-1202.4,0.00013838,2]
[318448453,1710252646411,-1202.4,0.00013838,2]
[318448454,1710252646421,-1202.4,0.00013838,2]
[318448455,1710252646431,-1202.4,0.00013838,2]
[318448456,1710252646442,-1202.4,0.00013838,2]
[318448457,1710252646453,-1202.4,0.00013838,2]
[318448458,1710252646465,-1202.4,0.00013838,2]
[318448459,1710252646476,-1202.63359913,0.00013838,2]
[318448460,1710252646488,-1275.99,0.00013838,2]
[318448461,1710252646498,-1275.99,0.00013838,2]
[318448462,1710252646509,-1275.99,0.00013838,2]
[318448463,1710252646520,-1275.99,0.00013838,2]
[318448464,1710252646531,-1275.99,0.00013838,2]
[318448465,1710252646542,-1275.99,0.00013838,2]
[318448466,1710252646552,-1275.99,0.00013838,2]
[318448467,1710252646563,-1275.99,0.00013838,2]
[318448468,1710252646573,-1275.99,0.00013838,2]
[318448469,1710252646583,-1275.99,0.00013838,2]
[318448470,1710252646600,-1276.10051478,0.00013838,2]
[318448471,1710252646611,-541.42,0.00013838,2]
[318448472,1710252646621,-541.42,0.00013838,2]
[318448473,1710252646630,-541.42,0.00013838,2]
[318448474,1710252646644,-541.42,0.00013838,2]
[318448475,1710252646653,-541.42,0.00013838,2]
[318448476,1710252646666,-541.42,0.00013838,2]
[318448477,1710252646675,-541.42,0.00013838,2]
[318448478,1710252646684,-541.42,0.00013838,2]
[318448479,1710252646694,-541.42,0.00013838,2]
[318448480,1710252646704,-541.42,0.00013838,2]
[318448481,1710252646714,-541.4671221,0.00013838,2]
[318448482,1710252646726,-13415.19,0.00013838,2]
[318448483,1710252646736,-13415.19,0.00013838,2]
[318448484,1710252646746,-13415.19,0.00013838,2]
[318448485,1710252646757,-13415.19,0.00013838,2]
[318448486,1710252646768,-13415.19,0.00013838,2]
[318448487,1710252646778,-13415.19,0.00013838,2]
[318448488,1710252646788,-13415.19,0.00013838,2]
[318448489,1710252646798,-13415.19,0.00013838,2]
[318448490,1710252646808,-13415.19,0.00013838,2]
[318448491,1710252646818,-13415.19,0.00013838,2]
[318448492,1710252646828,-13415.28596705,0.00013838,2]
[318448493,1710252646842,-821.18,0.00013838,2]
[318448494,1710252646852,-821.18,0.00013838,2]
[318448495,1710252646935,-821.18,0.00013838,2]
[318448496,1710252646945,-821.18,0.00013838,2]
[318448497,1710252646956,-821.26079631,0.00013838,2]
[318448498,1710252646967,-2152.4,0.00013838,2]
[318448499,1710252646977,-2152.4,0.00013838,2]
[318448500,1710252646988,-2152.4,0.00013838,2]
[318448501,1710252646998,-2152.4,0.00013838,2]
[318448503,1710252647008,-2152.4,0.00013838,2]
[318448504,1710252647018,-2152.4,0.00013838,2]
[318448506,1710252647029,-2152.4,0.00013838,2]
[318448508,1710252647040,-2152.4,0.00013838,2]
[318448509,1710252647050,-2152.4,0.00013838,2]
[318448510,1710252647060,-2152.4,0.00013838,2]
[318448511,1710252647070,-2152.4731093,0.00013838,2]
[318448512,1710252647080,-498.22795125,0.00013839,2]
[318448513,1710252647097,-500.0,0.00013839,2]
[318448515,1710252647108,-500.0,0.00013839,2]
[318448516,1710252647119,-535.27310214,0.00013839,2]
[318448517,1710252647130,-502.15582381,0.00013839,2]
[318448518,1710252647142,-803.7519169,0.00013839,2]
[318448519,1710252647152,-500.0,0.00013839,2]
[318448520,1710252647163,-500.0,0.00013839,2]
[318448521,1710252647175,-500.0,0.00013839,2]
[318448522,1710252647185,-500.0,0.00013839,2]
[318448523,1710252647196,-500.0,0.00013839,2]
[318448524,1710252647207,-500.0,0.00013839,2]
[318448525,1710252647221,-500.0,0.00013839,2]
[318448526,1710252647238,-500.0,0.00013839,2]
[318448527,1710252647249,-500.0,0.00013839,2]
[318448528,1710252647259,-500.0,0.00013839,2]
[318448529,1710252647271,-500.0,0.00013839,2]
[318448530,1710252647287,-514.56,0.00013839,2]
[318448532,1710252647298,-500.0,0.00013839,2]
[318448534,1710252647309,-500.0,0.00013839,2]
[318448536,1710252647330,-500.0,0.00013839,2]
[318448537,1710252647345,-500.0,0.00013839,2]
[318448539,1710252647357,-500.0,0.00013839,2]
[318448541,1710252647367,-500.0,0.00013839,2]
[318448543,1710252647378,-500.0,0.00013839,2]
[318448545,1710252647389,-500.0,0.00013839,2]
[318448547,1710252647401,-500.0,0.00013839,2]
[318448549,1710252647412,-500.0,0.00013839,2]
[318448551,1710252647423,-569.34782387,0.00013839,2]
[318448553,1710252647434,-500.0,0.00013839,2]
[318448555,1710252647444,-500.0,0.00013839,2]
[318448557,1710252647455,-500.0,0.00013839,2]
[318448558,1710252647465,-500.0,0.00013839,2]
[318448560,1710252647476,-500.0,0.00013839,2]
[318448562,1710252647486,-286.35031191,0.00013839,2]
[318448563,1710252647495,-500.0,0.00013839,2]
[318448565,1710252647505,-500.0,0.00013839,2]
[318448567,1710252647515,-500.0,0.00013839,2]
[318448569,1710252647525,-500.0,0.00013839,2]
[318448571,1710252647534,-500.0,0.00013839,2]
[318448572,1710252647544,-185.74941677,0.00013839,2]
[318448573,1710252647554,-500.0,0.00013839,2]
[318448574,1710252647564,-500.0,0.00013839,2]
[318448575,1710252647573,-500.0,0.00013839,2]
[318448576,1710252647583,-500.0,0.00013839,2]
[318448577,1710252647597,-500.0,0.00013839,2]
[318448578,1710252647607,-500.0,0.00013839,2]
[318448579,1710252647616,-500.0,0.00013839,2]
[318448580,1710252647627,-500.0,0.00013839,2]
[318448581,1710252647638,-500.0,0.00013839,2]
[318448582,1710252647648,-500.0,0.00013839,2]
[318448583,1710252647660,-507.94051648,0.00013839,2]
[318448584,1710252647671,-268.53919389,0.00013839,2]
[318448585,1710252647682,-500.0,0.00013839,2]
[318448586,1710252647692,-500.0,0.00013839,2]
[318448587,1710252647702,-500.0,0.00013839,2]
[318448588,1710252647712,-644.19,0.00013839,2]
[318448589,1710252647722,-644.19,0.00013839,2]
[318448590,1710252647732,-644.19,0.00013839,2]
[318448591,1710252647742,-644.19,0.00013839,2]
[318448592,1710252647752,-644.19,0.00013839,2]
[318448593,1710252647761,-644.19,0.00013839,2]
[318448594,1710252647771,-644.19,0.00013839,2]
[318448595,1710252647781,-644.19,0.00013839,2]
[318448596,1710252647792,-644.19,0.00013839,2]
[318448597,1710252647801,-644.19,0.00013839,2]
[318448598,1710252647810,-644.19,0.00013839,2]
[318448599,1710252647819,-644.19,0.00013839,2]
[318448600,1710252647829,-644.19,0.00013839,2]
[318448601,1710252647843,-644.19,0.00013839,2]
[318448602,1710252647853,-644.19,0.00013839,2]
[318448603,1710252647864,-644.19,0.00013839,2]
[318448604,1710252647874,-644.19,0.00013839,2]
[318448605,1710252647885,-644.19,0.00013839,2]
[318448606,1710252647896,-644.19,0.00013839,2]
[318448607,1710252647906,-644.19,0.00013839,2]
[318448608,1710252647916,-644.36764415,0.00013839,2]
[318448609,1710252647925,-500.0,0.00013839,2]
[318448610,1710252647935,-500.0,0.00013839,2]
[318448611,1710252647944,-500.0,0.00013839,2]
[318448612,1710252647954,-500.0,0.00013839,2]
[318448613,1710252647964,-500.0,0.00013839,2]
[318448614,1710252647973,-500.0,0.00013839,2]
[318448615,1710252647982,-500.0,0.00013839,2]
[318448616,1710252647992,-500.0,0.00013839,2]
[318448617,1710252648001,-500.0,0.00013839,2]
[318448618,1710252648010,-500.0,0.00013839,2]
[318448619,1710252648020,-500.0,0.00013839,2]
[318448620,1710252648030,-500.0,0.00013839,2]
[318448621,1710252648039,-500.0,0.00013839,2]
[318448622,1710252648049,-500.0,0.00013839,2]
[318448623,1710252648058,-500.0,0.00013839,2]
[318448624,1710252648068,-500.0,0.00013839,2]
[318448625,1710252648078,-500.0,0.00013839,2]
[318448626,1710252648087,-195.83124264,0.00013839,2]
[318448627,1710252648101,-587.59,0.00013839,2]
[318448628,1710252648111,-587.59,0.00013839,2]
[318448629,1710252648121,-587.59,0.00013839,2]
[318448630,1710252648131,-587.59,0.00013839,2]
[318448631,1710252648141,-587.59,0.00013839,2]
[318448632,1710252648151,-587.59,0.00013839,2]
[318448633,1710252648161,-587.59,0.00013839,2]
[318448634,1710252648170,-587.59,0.00013839,2]
[318448635,1710252648180,-587.59,0.00013839,2]
[318448636,1710252648190,-587.59,0.00013839,2]
[318448637,1710252648199,-587.59,0.00013839,2]
[318448638,1710252648208,-587.59,0.00013839,2]
[318448639,1710252648219,-587.59,0.00013839,2]
[318448640,1710252648234,-587.59,0.00013839,2]
[318448641,1710252648243,-587.59,0.00013839,2]
[318448642,1710252648252,-587.59,0.00013839,2]
[318448643,1710252648263,-587.59,0.00013839,2]
[318448644,1710252648274,-587.59,0.00013839,2]
[318448645,1710252648284,-587.59,0.00013839,2]
[318448646,1710252648293,-587.59,0.00013839,2]
[318448647,1710252648304,-587.70375117,0.00013839,2]
[318448648,1710252648315,-383.88704037,0.00013839,2]
[318448649,1710252648325,-500.0,0.00013839,2]
[318448650,1710252648335,-500.0,0.00013839,2]
[318448651,1710252648351,-591.80985409,0.00013839,2]
[318448653,1710252648360,-151.0,0.00013839,2]
[318448654,1710252648369,-218.717397,0.00013839,2]
[318448656,1710252648379,-386.911941,0.00013839,2]
[318448657,1710252648388,-386.911941,0.00013839,2]
[318448659,1710252648397,-386.911941,0.00013839,2]
[318448660,1710252648407,-386.911941,0.00013839,2]
[318448661,1710252648417,-386.911941,0.00013839,2]
[318448663,1710252648429,-386.911941,0.00013839,2]
[318448665,1710252648452,-386.911941,0.00013839,2]
[318448667,1710252648470,-386.911941,0.00013839,2]
[318448668,1710252648480,-500.0,0.0001384,2]
[318448670,1710252648490,-500.0,0.0001384,2]
[318448671,1710252648499,-500.0,0.0001384,2]
[318448673,1710252648509,-500.0,0.0001384,2]
[318448674,1710252648519,-500.0,0.0001384,2]
[318448676,1710252648528,-500.0,0.0001384,2]
[318448678,1710252648539,-500.0,0.0001384,2]
[318448679,1710252648548,-500.0,0.0001384,2]
[318448681,1710252648558,-188.73100634,0.00013841,2]
[318448682,1710252648567,-3222.73716798,0.00013842,2]
[318448684,1710252648577,-624.4418368,0.00013842,2]
[318448686,1710252648587,-155.29755424,0.00013842,2]
[318448687,1710252648599,-155.46323421,0.00013842,2]
[318448689,1710252648608,-422.68983673,0.00013842,2]
[318448690,1710252648617,-20514.81813708,0.00013842,2]
[318448692,1710252648627,-212.12126449,0.00013842,2]
[318448693,1710252648636,-2599.10074081,0.00013842,2]
[318448695,1710252648646,-321.99580067,0.00013842,2]
[318448697,1710252648655,-204.7711481,0.00013842,2]
[318448698,1710252648664,-1081.09653886,0.00013842,2]
[318448700,1710252648673,-806.23898759,0.00013842,2]
[318448701,1710252648682,-434.20280321,0.00013842,2]
[318448703,1710252648691,-155.20797869,0.00013842,2]
[318448705,1710252648700,-199.055976,0.00013842,2]
[318448706,1710252648709,-155.8108118,0.00013842,2]
[318448708,1710252648718,-527.89739133,0.00013842,2]
[318448709,1710252648728,-155.34705369,0.00013842,2]
[318448711,1710252648738,-386.911941,0.00013842,2]
[318448713,1710252648748,-386.911941,0.00013842,2]
[318448714,1710252648757,-595543.53879603,0.00013844,2]
[318448722,1710252648886,-619.59764545,0.00013844,2]
[318448724,1710252648898,-21595.00345881,0.00013844,2]
[318448726,1710252648910,-3707.03677394,0.00013844,2]
[318448727,1710252648923,-39551.29055966,0.00013844,2]
[318448729,1710252648935,-1000.0,0.00013844,2]
[318448731,1710252648948,-122246.9430602,0.00013844,2]
[318448733,1710252648960,-1456.90170696,0.00013844,2]
[318448737,1710252649016,-581.0273,0.00013844,2]
[318448741,1710252649081,-201.0608458,0.000136,2]
[318448743,1710252649096,-13844.28441113,0.00013844,2]
[318448747,1710252649174,-1612.58000001,0.00013844,2]
[318448748,1710252649189,-10670.4447722,0.00013844,2]
[318448749,1710252649202,-12460.60312064,0.00013844,2]
[318448928,1710253228021,165.56634744,0.00014,30]
[318448929,1710253339852,13199.7815073,0.00010375,2]
[318448930,1710253339886,11700.2184927,0.00010375,2]
[318448931,1710253432377,-155.20642454,0.00011342,2]
[318448932,1710253432401,-454.19517279,0.00011343,2]
[318448933,1710253432424,-616.25212117,0.00011344,2]
[318448934,1710253432450,-1952.23291968,0.00011345,2]
[318448935,1710253432478,-1672.72758336,0.00011345,2]
[318448936,1710253432502,-300.0,0.00011352,2]
[318448937,1710253432525,-18389.6999459,0.00011353,2]
[318448938,1710253432757,-6459.68583256,0.00011444,2]
[318448975,1710253661485,262.67803637,0.00013842,7]
[318449017,1710253808803,24900.0,0.0001041,2]
[318449083,1710253835141,-669.42782765,0.00011132,2]
[318449085,1710253835152,-338.65,0.00011133,2]
[318449087,1710253835162,-208.43582616,0.00011134,2]
[318449089,1710253835174,-290.63597598,0.00011134,2]
[318449091,1710253835183,-616.25212117,0.00011135,2]
[318449092,1710253835193,-565.37724042,0.00011143,2]
[318449094,1710253835204,-250.0,0.00011257,2]
[318449096,1710253835215,-300.0,0.00011306,2]
[318449099,1710253835226,-227.06678587,0.00011307,2]
[318449103,1710253835238,-825.4181885,0.00011307,2]
[318449180,1710253838385,-454.19517279,0.00011131,2]
[318449181,1710253838396,-591.9061019,0.00011307,2]
[318449182,1710253838409,-4221.52482911,0.00011307,2]
[318449183,1710253838471,-3621.38392236,0.00011307,2]
[318449184,1710253838485,-2430.97218626,0.00011307,2]
[318449185,1710253838495,-190.0,0.00012436,2]
[318449186,1710253838505,-18974.03127255,0.00012857,2]
[318449187,1710253838520,-986.79383996,0.00012857,2]
[318449188,1710253838531,-810.98493516,0.00012857,2]
[318449189,1710253838543,-8597.00871465,0.00012857,2]
[318449190,1710253838556,-7343.21265821,0.00012857,2]
[318449191,1710253838569,-171.83185867,0.000129,2]
[318449192,1710253838578,-153.8604924,0.00012941,2]
[318449193,1710253838588,-6881.09499018,0.00013077,2]
[318449234,1710253840200,-464.78866184,0.00013077,2]
[318449236,1710253840212,-367.733038,0.00013077,2]
[318449238,1710253840225,-234.35475808,0.00013077,2]
[318449240,1710253840235,-153.0,0.00013078,2]
[318449243,1710253840246,-153.0,0.00013078,2]
[318449244,1710253840257,-306.0,0.00013078,2]
[318449246,1710253840269,-153.0,0.00013078,2]
[318449250,1710253840289,-124.64524192,0.00013078,2]
[318449254,1710253840310,-28.35475808,0.00013078,2]
[318449257,1710253840321,-153.0,0.00013078,2]
[318449260,1710253840332,-201.0608458,0.00013078,2]
[318449264,1710253840343,-201.0608458,0.00013078,2]
[318449267,1710253840353,-201.0608458,0.00013078,2]
[318449269,1710253840363,-201.0608458,0.00013078,2]
[318449271,1710253840372,-153.0,0.000131,2]
[318449272,1710253840381,-153.0,0.000131,2]
[318449274,1710253840390,-201.0608458,0.000131,2]
[318449276,1710253840400,-306.0,0.000131,2]
[318449278,1710253840409,-201.0608458,0.000131,2]
[318449280,1710253840419,-201.0608458,0.000131,2]
[318449282,1710253840428,-153.0,0.000131,2]
[318449284,1710253840438,-201.0608458,0.000131,2]
[318449286,1710253840448,-201.0608458,0.00013278,2]
[318449289,1710253840458,-201.0608458,0.000133,2]
[318449291,1710253840467,-153.0,0.00013378,2]
[318449292,1710253840477,-349.8199554,0.00013378,2]
[318449294,1710253840486,-153.0,0.00013378,2]
[318449296,1710253840496,-265.2031911,0.00013378,2]
[318449298,1710253840505,-2180.02136369,0.00013427,2]
[318449300,1710253840517,-153.0,0.000135,2]
[318449302,1710253840527,-153.0,0.000135,2]
[318449304,1710253840536,-153.0,0.000135,2]
[318449306,1710253840546,-153.0,0.000135,2]